fUST/lending_fUST_20250819
["ID","MTS","AMOUNT","RATE_DAILY","PERIOD"]
[380132115,1755565847824,-480.0,0.00019452,2]
[380132116,1755565847835,-480.0,0.00019452,2]
[380132117,1755565847845,-460.0,0.00019452,2]
[380132118,1755565847855,-480.0,0.00019452,2]
[380132119,1755565847866,-435.407089,0.00019452,2]
[380132120,1755565847876,-435.407089,0.00019452,2]
[380132121,1755565847885,-435.407089,0.00019452,2]
[380132122,1755565847895,-480.0,0.00019452,2]
[380132123,1755565847905,-435.407089,0.00019452,2]
[380132124,1755565847915,-435.407089,0.00019452,2]
[380132125,1755565847924,-435.407089,0.00019452,2]
[380132126,1755565848003,-151.0,0.00019452,2]
[380132127,1755565848014,-480.0,0.00019452,2]
[380132128,1755565848023,-151.0,0.00019452,2]
[380132129,1755565848033,-151.0,0.00019452,2]
[380132130,1755565848043,-464.02754162,0.00019452,2]
[380132131,1755565848053,-464.70429543,0.00019452,2]
[380132132,1755565848062,-480.0,0.00019452,2]
[380132133,1755565848071,-480.0,0.00019452,2]
[380132134,1755565848080,-480.0,0.00019452,2]
[380132135,1755565848090,-480.0,0.00019452,2]
[380132136,1755565848099,-2865.4,0.00019452,2]
[380132137,1755565848109,-480.0,0.00019452,2]
[380132138,1755565848119,-263.424956,0.00019452,2]
[380132139,1755565848129,-263.424956,0.00019452,2]
[380132140,1755565848139,-300.02025995,0.00019452,2]
[380132141,1755565848150,-263.424956,0.00019452,2]
[380132142,1755565848162,-440.0,0.00019452,2]
[380132143,1755565848172,-263.424956,0.00019452,2]
[380132144,1755565848182,-263.424956,0.00019452,2]
[380132145,1755565848191,-263.424956,0.00019452,2]
[380132146,1755565848201,-480.0,0.00019452,2]
[380132147,1755565848213,-480.0,0.00019452,2]
[380132148,1755565848222,-151.0,0.00019452,2]
[380132149,1755565848232,-151.0,0.00019452,2]
[380132150,1755565848241,-151.0,0.00019452,2]
[380132151,1755565848251,-480.0,0.00019452,2]
[380132152,1755565848260,-480.0,0.00019452,2]
[380132153,1755565848270,-480.0,0.00019452,2]
[380132154,1755565848280,-480.0,0.00019452,2]
[380132155,1755565848289,-480.0,0.00019452,2]
[380132156,1755565848299,-480.0,0.00019452,2]
[380132157,1755565848308,-440.0,0.00019452,2]
[380132158,1755565848317,-480.0,0.00019452,2]
[380132159,1755565848327,-1368.81,0.00019452,2]
[380132160,1755565848336,-151.0,0.00019452,2]
[380132161,1755565848346,-151.0,0.00019452,2]
[380132162,1755565848355,-151.0,0.00019452,2]
[380132163,1755565848365,-151.0,0.00019452,2]
[380132164,1755565848374,-480.0,0.00019452,2]
[380132165,1755565848384,-480.0,0.00019452,2]
[380132166,1755565848398,-156.960684,0.00019452,2]
[380132167,1755565848409,-156.960684,0.00019452,2]
[380132168,1755565848419,-156.960684,0.00019452,2]
[380132169,1755565848431,-156.960684,0.00019452,2]
[380132170,1755565848440,-480.0,0.00019452,2]
[380132171,1755565848450,-480.0,0.00019452,2]
[380132172,1755565848460,-151.0,0.00019452,2]
[380132173,1755565848470,-255.86946,0.00019452,2]
[380132174,1755565848480,-480.0,0.00019452,2]
[380132175,1755565848490,-460.0,0.00019452,2]
[380132176,1755565848499,-156.960684,0.00019452,2]
[380132177,1755565848509,-156.960684,0.00019452,2]
[380132178,1755565848518,-156.960684,0.00019452,2]
[380132179,1755565848527,-156.960684,0.00019452,2]
[380132180,1755565848536,-480.0,0.00019452,2]
[380132181,1755565848547,-387.446965,0.00019452,2]
[380132182,1755565848557,-387.446965,0.00019452,2]
[380132183,1755565848567,-387.446965,0.00019452,2]
[380132184,1755565848576,-387.446965,0.00019452,2]
[380132185,1755565848585,-387.446965,0.00019452,2]
[380132186,1755565848595,-480.0,0.00019452,2]
[380132187,1755565848605,-387.446965,0.00019452,2]
[380132188,1755565848614,-819.01,0.00019452,2]
[380132189,1755565848624,-480.0,0.00019452,2]
[380132190,1755565848633,-480.0,0.00019452,2]
[380132191,1755565848643,-460.49376684,0.00019452,2]
[380132192,1755565848654,-480.0,0.00019452,2]
[380132193,1755565848663,-614.31649026,0.00019452,2]
[380132194,1755565848673,-480.0,0.00019452,2]
[380132195,1755565848682,-462.58693244,0.00019452,2]
[380132196,1755565848692,-480.0,0.00019452,2]
[380132197,1755565848702,-4419.17,0.00019452,2]
[380132198,1755565848713,-1316.735515,0.00019452,2]
[380132199,1755565848723,-1316.735515,0.00019452,2]
[380132200,1755565848733,-1316.735515,0.00019452,2]
[380132201,1755565848743,-1316.735515,0.00019452,2]
[380132202,1755565848752,-480.0,0.00019452,2]
[380132203,1755565848764,-530.68,0.00019452,2]
[380132204,1755565848773,-480.0,0.00019452,2]
[380132205,1755565848783,-480.0,0.00019452,2]
[380132206,1755565848794,-480.0,0.00019452,2]
[380132207,1755565848804,-151.0,0.00019452,2]
[380132208,1755565848813,-151.0,0.00019452,2]
[380132209,1755565848823,-151.0,0.00019452,2]
[380132210,1755565848833,-1316.735515,0.00019452,2]
[380132211,1755565848842,-1316.735515,0.00019452,2]
[380132212,1755565848852,-1316.735515,0.00019452,2]
[380132213,1755565848863,-481.94,0.00019452,2]
[380132214,1755565848873,-1316.735515,0.00019452,2]
[380132215,1755565848884,-480.0,0.00019452,2]
[380132216,1755565848893,-480.0,0.00019452,2]
[380132217,1755565848905,-480.0,0.00019452,2]
[380132218,1755565848915,-480.0,0.00019452,2]
[380132219,1755565848924,-480.0,0.00019452,2]
[380132220,1755565848934,-1931.66,0.00019452,2]
[380132221,1755565848943,-480.0,0.00019452,2]
[380132222,1755565848952,-480.0,0.00019452,2]
[380132223,1755565848963,-1007.46,0.00019452,2]
[380132224,1755565848975,-480.0,0.00019452,2]
[380132225,1755565848984,-480.0,0.00019452,2]
[380132226,1755565848995,-610.17,0.00019452,2]
[380132227,1755565849004,-151.0,0.00019452,2]
[380132228,1755565849014,-151.0,0.00019452,2]
[380132229,1755565849023,-480.0,0.00019452,2]
[380132230,1755565849033,-151.0,0.00019452,2]
[380132231,1755565849043,-151.0,0.00019452,2]
[380132232,1755565849052,-208.111543,0.00019452,2]
[380132233,1755565849062,-151.0,0.00019452,2]
[380132234,1755565849071,-208.111543,0.00019452,2]
[380132235,1755565849081,-151.0,0.00019452,2]
[380132236,1755565849090,-208.111543,0.00019452,2]
[380132237,1755565849100,-151.0,0.00019452,2]
[380132238,1755565849110,-286.098103,0.00019452,2]
[380132239,1755565849120,-257.85367,0.00019452,2]
[380132240,1755565849129,-208.111543,0.00019452,2]
[380132241,1755565849139,-208.111543,0.00019452,2]
[380132242,1755565849149,-208.111543,0.00019452,2]
[380132243,1755565849161,-480.0,0.00019452,2]
[380132244,1755565849170,-772.59,0.00019452,2]
[380132245,1755565849180,-460.0,0.00019452,2]
[380132246,1755565849190,-441.29662983,0.00019452,2]
[380132247,1755565849200,-1642.42,0.00019452,2]
[380132248,1755565849209,-151.0,0.00019452,2]
[380132249,1755565849219,-151.0,0.00019452,2]
[380132250,1755565849228,-151.0,0.00019452,2]
[380132251,1755565849237,-444.1311977,0.00019452,2]
[380132252,1755565849246,-1393.34,0.00019452,2]
[380132253,1755565849255,-151.0,0.00019452,2]
[380132254,1755565849264,-151.0,0.00019452,2]
[380132255,1755565849274,-151.0,0.00019452,2]
[380132256,1755565849283,-480.0,0.00019452,2]
[380132257,1755565849293,-480.3066575,0.00019452,2]
[380132258,1755565849303,-359.273245,0.00019452,2]
[380132259,1755565849312,-359.273245,0.00019452,2]
[380132260,1755565849322,-480.0,0.00019452,2]
[380132261,1755565849403,-359.273245,0.00019452,2]
[380132262,1755565849413,-151.0,0.00019452,2]
[380132263,1755565849422,-151.0,0.00019452,2]
[380132264,1755565849437,-151.0,0.00019452,2]
[380132265,1755565849453,-359.273245,0.00019452,2]
[380132266,1755565849463,-359.273245,0.00019452,2]
[380132267,1755565849472,-359.273245,0.00019452,2]
[380132268,1755565849481,-480.0,0.00019452,2]
[380132269,1755565849490,-480.0,0.00019452,2]
[380132270,1755565849499,-480.0,0.00019452,2]
[380132271,1755565849509,-1084.95,0.00019452,2]
[380132272,1755565849518,-480.0,0.00019452,2]
[380132273,1755565849527,-480.42118859,0.00019452,2]
[380132274,1755565849537,-151.0,0.00019452,2]
[380132275,1755565849546,-151.0,0.00019452,2]
[380132276,1755565849555,-151.0,0.00019452,2]
[380132277,1755565849565,-523.053354,0.00019452,2]
[380132278,1755565849575,-523.053354,0.00019452,2]
[380132279,1755565849584,-523.053354,0.00019452,2]
[380132280,1755565849594,-480.0,0.00019452,2]
[380132281,1755565849603,-664.67,0.00019452,2]
[380132282,1755565849613,-523.053354,0.00019452,2]
[380132283,1755565849623,-523.053354,0.00019452,2]
[380132284,1755565849633,-523.053354,0.00019452,2]
[380132285,1755565849642,-610.84,0.00019452,2]
[380132286,1755565849653,-480.0,0.00019452,2]
[380132287,1755565849662,-480.0,0.00019452,2]
[380132288,1755565849671,-480.0,0.00019452,2]
[380132289,1755565849680,-480.0,0.00019452,2]
[380132290,1755565849690,-480.0,0.00019452,2]
[380132291,1755565849699,-339.44911075,0.00019452,2]
[380132292,1755565849708,-480.0,0.00019452,2]
[380132293,1755565849718,-480.0,0.00019452,2]
[380132294,1755565849727,-320.86531,0.00019452,2]
[380132295,1755565849737,-320.86531,0.00019452,2]
[380132296,1755565849746,-320.86531,0.00019452,2]
[380132297,1755565849755,-320.86531,0.00019452,2]
[380132298,1755565849764,-480.0,0.00019452,2]
[380132299,1755565849774,-480.0,0.00019452,2]
[380132300,1755565849783,-2710.22,0.00019452,2]
[380132301,1755565849793,-466.75195852,0.00019452,2]
[380132302,1755565849803,-320.86531,0.00019452,2]
[380132303,1755565849812,-320.86531,0.00019452,2]
[380132304,1755565849821,-320.86531,0.00019452,2]
[380132305,1755565849831,-320.86531,0.00019452,2]
[380132306,1755565849841,-515.59,0.00019452,2]
[380132307,1755565849850,-1500.0,0.00019452,14]
[380132308,1755565849860,-1500.0,0.00019452,14]
[380132309,1755565849869,-1500.0,0.00019452,14]
[380132310,1755565849879,-1500.0,0.00019452,14]
[380132311,1755565849889,-1991.28,0.00019452,2]
[380132312,1755565849898,-1500.0,0.00019452,14]
[380132313,1755565849909,-480.0,0.00019452,2]
[380132314,1755565849918,-1500.0,0.00019452,14]
[380132315,1755565849929,-1500.0,0.00019452,14]
[380132316,1755565849939,-1500.0,0.00019452,14]
[380132317,1755565849948,-1500.0,0.00019452,14]
[380132318,1755565849957,-1500.0,0.00019452,14]
[380132319,1755565849967,-181.76002,0.00019452,2]
[380132320,1755565849982,-1500.0,0.00019452,14]
[380132321,1755565849992,-181.76002,0.00019452,2]
[380132322,1755565850001,-1500.0,0.00019452,14]
[380132323,1755565850011,-181.76002,0.00019452,2]
[380132324,1755565850020,-1500.0,0.00019452,14]
[380132325,1755565850030,-181.76002,0.00019452,2]
[380132326,1755565850039,-1500.0,0.00019452,14]
[380132327,1755565850049,-1500.0,0.00019452,14]
[380132328,1755565850059,-1500.0,0.00019452,14]
[380132329,1755565850068,-1500.0,0.00019452,14]
[380132330,1755565850077,-1500.0,0.00019452,14]
[380132331,1755565850086,-1500.0,0.00019452,14]
[380132332,1755565850096,-1500.0,0.00019452,14]
[380132333,1755565850105,-181.76002,0.00019452,2]
[380132334,1755565850114,-1500.0,0.00019452,14]
[380132335,1755565850123,-181.76002,0.00019452,2]
[380132336,1755565850133,-1500.0,0.00019452,14]
[380132337,1755565850142,-1500.0,0.00019452,14]
[380132338,1755565850153,-181.76002,0.00019452,2]
[380132339,1755565850162,-151.0,0.00019452,2]
[380132340,1755565850171,-1500.0,0.00019452,14]
[380132341,1755565850181,-181.76002,0.00019452,2]
[380132342,1755565850191,-585.012091,0.00019452,14]
[380132343,1755565850200,-151.0,0.00019452,2]
[380132344,1755565850210,-151.0,0.00019452,2]
[380132345,1755565850219,-1559.32,0.00019452,2]
[380132346,1755565850231,-856.6,0.00019452,2]
[380132347,1755565850240,-480.0,0.00019452,2]
[380132348,1755565850249,-480.0,0.00019452,2]
[380132349,1755565850259,-480.0,0.00019452,2]
[380132350,1755565850268,-480.0,0.00019452,2]
[380132351,1755565850277,-480.0,0.00019452,2]
[380132352,1755565850287,-480.0,0.00019452,2]
[380132353,1755565850297,-1475.9,0.00019452,2]
[380132354,1755565850306,-186.073184,0.00019452,2]
[380132355,1755565850315,-186.073184,0.00019452,2]
[380132356,1755565850325,-186.073184,0.00019452,2]
[380132357,1755565850334,-186.073184,0.00019452,2]
[380132358,1755565850345,-879.89,0.00019452,2]
[380132359,1755565850354,-186.073184,0.00019452,2]
[380132360,1755565850363,-186.073184,0.00019452,2]
[380132361,1755565850373,-186.073184,0.00019452,2]
[380132362,1755565850383,-186.073184,0.00019452,2]
[380132363,1755565850397,-480.0,0.00019452,2]
[380132364,1755565850409,-480.0,0.00019452,2]
[380132365,1755565850419,-480.0,0.00019452,2]
[380132366,1755565850428,-1244.34,0.00019452,2]
[380132367,1755565850438,-1781.78,0.00019452,2]
[380132368,1755565850448,-680.66,0.00019452,2]
[380132369,1755565850458,-480.0,0.00019452,2]
[380132370,1755565850467,-480.0,0.00019452,2]
[380132371,1755565850478,-151.0,0.00019452,2]
[380132372,1755565850487,-165.211624,0.00019452,2]
[380132373,1755565850496,-5158.14,0.00019452,2]
[380132374,1755565850506,-460.0,0.00019452,2]
[380132375,1755565850515,-151.0,0.00019452,2]
[380132376,1755565850525,-480.0,0.00019452,2]
[380132377,1755565850534,-151.0,0.00019452,2]
[380132378,1755565850544,-151.0,0.00019452,2]
[380132379,1755565850553,-151.0,0.00019452,2]
[380132380,1755565850563,-151.0,0.00019452,2]
[380132381,1755565850573,-480.0,0.00019452,2]
[380132382,1755565850582,-480.0,0.00019452,2]
[380132383,1755565850591,-480.0,0.00019452,2]
[380132384,1755565850601,-480.0,0.00019452,2]
[380132385,1755565850682,-151.0,0.00019452,2]
[380132386,1755565850693,-151.0,0.00019452,2]
[380132387,1755565850703,-151.0,0.00019452,2]
[380132388,1755565850713,-151.0,0.00019452,2]
[380132389,1755565850723,-151.0,0.00019452,2]
[380132390,1755565850732,-480.0,0.00019452,2]
[380132391,1755565850741,-151.0,0.00019452,2]
[380132392,1755565850752,-211.300662,0.00019452,2]
[380132393,1755565850761,-800.18,0.00019452,2]
[380132394,1755565850771,-480.0,0.00019452,2]
[380132395,1755565850780,-480.0,0.00019452,2]
[380132396,1755565850789,-480.0,0.00019452,2]
[380132397,1755565850800,-769.15,0.00019452,2]
[380132398,1755565850809,-480.0,0.00019452,2]
[380132399,1755565850819,-151.0,0.00019452,2]
[380132400,1755565850829,-151.0,0.00019452,2]
[380132401,1755565850839,-151.0,0.00019452,2]
[380132402,1755565850848,-177.46649,0.00019452,2]
[380132403,1755565850858,-480.0,0.00019452,2]
[380132404,1755565850867,-480.0,0.00019452,2]
[380132405,1755565850877,-480.0,0.00019452,2]
[380132406,1755565850887,-480.0,0.00019452,2]
[380132407,1755565850897,-480.0,0.00019452,2]
[380132408,1755565850907,-5232.37,0.00019452,2]
[380132409,1755565850917,-480.0,0.00019452,2]
[380132410,1755565850927,-480.0,0.00019452,2]
[380132411,1755565850938,-480.0,0.00019452,2]
[380132412,1755565850947,-604.53,0.00019452,2]
[380132413,1755565850957,-480.0,0.00019452,2]
[380132414,1755565850967,-706.02,0.00019452,2]
[380132415,1755565850977,-700.73,0.00019452,2]
[380132416,1755565850986,-480.0,0.00019452,2]
[380132417,1755565850996,-500.58663,0.00019452,2]
[380132418,1755565851006,-500.58663,0.00019452,2]
[380132419,1755565851016,-486.75,0.00019452,2]
[380132420,1755565851025,-500.58663,0.00019452,2]
[380132421,1755565851035,-500.58663,0.00019452,2]
[380132422,1755565851044,-151.0,0.00019452,2]
[380132423,1755565851054,-151.0,0.00019452,2]
[380132424,1755565851064,-151.0,0.00019452,2]
[380132425,1755565851074,-151.0,0.00019452,2]
[380132426,1755565851083,-500.58663,0.00019452,2]
[380132427,1755565851094,-500.58663,0.00019452,2]
[380132428,1755565851103,-500.58663,0.00019452,2]
[380132429,1755565851112,-480.0,0.00019452,2]
[380132430,1755565851122,-500.58663,0.00019452,2]
[380132431,1755565851131,-480.0,0.00019452,2]
[380132432,1755565851140,-480.0,0.00019452,2]
[380132433,1755565851150,-1311.693579,0.00019452,2]
[380132434,1755565851160,-1311.693579,0.00019452,2]
[380132435,1755565851170,-1311.693579,0.00019452,2]
[380132436,1755565851179,-1311.693579,0.00019452,2]
[380132437,1755565851188,-1868.25,0.00019452,2]
[380132438,1755565851198,-1311.693579,0.00019452,2]
[380132439,1755565851207,-1311.693579,0.00019452,2]
[380132440,1755565851218,-462.91874358,0.00019452,2]
[380132441,1755565851227,-151.0,0.00019452,2]
[380132442,1755565851237,-151.0,0.00019452,2]
[380132443,1755565851246,-151.0,0.00019452,2]
[380132444,1755565851255,-480.0,0.00019452,2]
[380132445,1755565851265,-1311.693579,0.00019452,2]
[380132446,1755565851275,-1311.693579,0.00019452,2]
[380132447,1755565851284,-660.11,0.00019452,2]
[380132448,1755565851293,-1533.1,0.00019452,2]
[380132449,1755565851302,-619.17559797,0.00019452,2]
[380132450,1755565851311,-525.46578648,0.00019452,2]
[380132451,1755565851321,-726.99,0.00019452,2]
[380132452,1755565851330,-659.04,0.00019452,2]
[380132453,1755565851339,-480.0,0.00019452,2]
[380132454,1755565851349,-480.0,0.00019452,2]
[380132455,1755565851358,-547.36,0.00019452,2]
[380132456,1755565851367,-547.36,0.00019452,2]
[380132457,1755565851377,-480.0,0.00019452,2]
[380132458,1755565851387,-480.0,0.00019452,2]
[380132459,1755565851399,-480.0,0.00019452,2]
[380132460,1755565851410,-480.0,0.00019452,2]
[380132461,1755565851419,-151.0,0.00019452,2]
[380132462,1755565851429,-151.0,0.00019452,2]
[380132463,1755565851439,-190.494024,0.00019452,2]
[380132464,1755565851448,-809.73,0.00019452,2]
[380132465,1755565851457,-480.0,0.00019452,2]
[380132466,1755565851468,-487.21,0.00019452,2]
[380132467,1755565851477,-480.0,0.00019452,2]
[380132468,1755565851487,-480.0,0.00019452,2]
[380132469,1755565851497,-480.0,0.00019452,2]
[380132470,1755565851508,-1688.88,0.00019452,2]
[380132471,1755565851517,-480.0,0.00019452,2]
[380132472,1755565851526,-500.0,0.00019473,2]
[380132473,1755565851535,-243.02036614,0.00019473,2]
[380132474,1755565851545,-500.0,0.00019473,2]
[380132475,1755565851554,-354.97274763,0.00019473,2]
[380132476,1755565851564,-500.0,0.00019473,2]
[380132477,1755565851575,-151.0,0.00019473,2]
[380132478,1755565851585,-267.430959,0.00019473,2]
[380132479,1755565851595,-151.0,0.00019473,2]
[380132480,1755565851605,-151.0,0.00019473,2]
[380132481,1755565851614,-151.0,0.00019473,2]
[380132482,1755565851624,-151.0,0.00019473,2]
[380132483,1755565851633,-151.0,0.00019473,2]
[380132484,1755565851642,-208.111543,0.00019473,2]
[380132485,1755565851652,-208.111543,0.00019473,2]
[380132486,1755565851662,-151.0,0.00019473,2]
[380132487,1755565851671,-151.0,0.00019473,2]
[380132488,1755565851681,-359.273245,0.00019473,2]
[380132489,1755565851690,-152.010756,0.00019473,2]
[380132490,1755565851700,-359.273245,0.00019473,2]
[380132491,1755565851709,-151.0,0.00019473,2]
[380132492,1755565851718,-523.053354,0.00019473,2]
[380132493,1755565851728,-523.053354,0.00019473,2]
[380132494,1755565851739,-151.0,0.00019473,2]
[380132495,1755565851749,-5888.0,0.00019507,2]
[380132496,1755565851760,-2895.54,0.0001956,2]
[380132497,1755565851771,-500.58663,0.0001956,2]
[380132498,1755565851781,-151.0,0.0001956,2]
[380132499,1755565851856,-500.586623,0.0001956,2]
[380132500,1755565851866,-1311.693579,0.0001956,2]
[380132501,1755565851877,-1311.69357349,0.0001956,2]
[380132502,1755565851886,-200.0,0.00019561,20]
[380132503,1755565851895,-200.0,0.00019561,20]
[380132504,1755565851906,-200.0,0.00019561,20]
[380132505,1755565851915,-200.0,0.00019561,20]
[380132506,1755565851925,-200.0,0.00019561,20]
[380132507,1755565851935,-200.0,0.00019561,20]
[380132508,1755565851944,-200.0,0.00019561,20]
[380132509,1755565851954,-200.0,0.00019561,20]
[380132510,1755565851963,-200.0,0.00019561,20]
[380132511,1755565851972,-200.0,0.00019561,20]
[380132512,1755565851981,-600.0,0.00019561,20]
[380132513,1755565851990,-151.0,0.00019561,2]
[380132514,1755565852000,-435.407089,0.00019561,2]
[380132515,1755565852010,-435.407089,0.00019561,2]
[380132516,1755565852020,-151.0,0.00019561,2]
[380132517,1755565852030,-263.424956,0.00019561,2]
[380132518,1755565852040,-263.424956,0.00019561,2]
[380132519,1755565852049,-229.591592,0.00019561,2]
[380132520,1755565852058,-387.446965,0.00019561,2]
[380132521,1755565852067,-387.446965,0.00019561,2]
[380132522,1755565852077,-151.0,0.00019561,2]
[380132523,1755565852086,-160.0,0.0001957,2]
[380132524,1755565852096,-160.0,0.0001957,2]
[380132525,1755565852105,-843.81736472,0.0001957,2]
[380132526,1755565852115,-232.18122251,0.0001957,2]
[380132527,1755565852124,-528.58062739,0.0001957,2]
[380132528,1755565852134,-216.85420361,0.0001957,2]
[380132529,1755565852143,-417.15472785,0.0001957,2]
[380132530,1755565852153,-160.0,0.0001957,2]
[380132531,1755565852163,-375.82681177,0.0001957,2]
[380132532,1755565852172,-215.75323784,0.0001957,2]
[380132533,1755565852182,-12683.78573522,0.0001957,2]
[380132534,1755565852192,-160.0,0.0001957,2]
[380132535,1755565852201,-320.86531,0.0001957,2]
[380132536,1755565852211,-320.86531,0.0001957,2]
[380132537,1755565852220,-181.76002,0.0001957,2]
[380132538,1755565852230,-181.76002,0.0001957,2]
[380132539,1755565852239,-186.073184,0.0001957,2]
[380132540,1755565852248,-186.073184,0.0001957,2]
[380132541,1755565852258,-151.0,0.0001957,2]
[380132542,1755565852268,-186.962021,0.00019572,2]
[380132543,1755565852278,-186.962021,0.00019572,2]
[380132544,1755565852288,-151.0,0.00019572,2]
[380132545,1755565852298,-151.0,0.00019572,2]
[380132546,1755565852308,-151.817891,0.00019572,2]
[380132547,1755565852317,-151.0,0.00019572,2]
[380132548,1755565852327,-209.369761,0.00019572,2]
[380132549,1755565852337,-151.0,0.00019572,2]
[380132550,1755565852346,-255.026834,0.00019572,2]
[380132551,1755565852362,-197.819997,0.00019572,2]
[380132552,1755565852379,-197.819997,0.00019572,2]
[380132553,1755565852397,-151.0,0.000196,2]
[380132554,1755565852416,-150000.0,0.00019625,2]
[380132555,1755565852435,-70666.7754932,0.00019625,2]
[380132556,1755565852453,-2895.54,0.00019625,2]
[380132557,1755565852472,-297.86214765,0.00019625,2]
[380132558,1755565852487,-293.8392635,0.00019644,2]
[380132559,1755565852502,-580.787823,0.00019644,2]
[380132560,1755565852520,-580.787823,0.00019644,2]
[380132561,1755565852537,-293.8392635,0.00019644,2]
[380132562,1755565852553,-293.8392635,0.00019644,2]
[380132563,1755565852567,-580.787823,0.00019644,2]
[380132564,1755565852586,-293.8392635,0.00019644,2]
[380132565,1755565852601,-355.4978885,0.00019644,2]
[380132566,1755565852617,-587.678527,0.00019644,2]
[380132567,1755565852631,-293.8392635,0.00019644,2]
[380132568,1755565852646,-153.0,0.00019644,2]
[380132569,1755565852662,-151.0,0.00019644,2]
[380132570,1755565852677,-151.0,0.00019644,2]
[380132571,1755565852691,-151.0,0.00019644,2]
[380132572,1755565852705,-151.0,0.00019644,2]
[380132573,1755565852719,-151.0,0.00019644,2]
[380132574,1755565852733,-247.740182,0.00019644,2]
[380132575,1755565852746,-151.0,0.00019644,2]
[380132576,1755565852761,-151.0,0.00019644,2]
[380132577,1755565852777,-639.444324,0.00019644,2]
[380132578,1755565852791,-639.444324,0.00019644,2]
[380132579,1755565852805,-151.0,0.00019644,2]
[380132580,1755565852819,-151.0,0.00019644,2]
[380132581,1755565852833,-151.0,0.00019644,2]
[380132582,1755565852846,-156.960684,0.00019644,2]
[380132583,1755565852862,-156.960684,0.00019644,2]
[380132584,1755565852877,-1316.735515,0.00019644,2]
[380132585,1755565852891,-1316.735515,0.00019644,2]
[380132586,1755565852907,-151.0,0.00019644,2]
[380132587,1755565852921,-151.0,0.00019644,2]
[380132588,1755565852935,-208.111543,0.00019644,2]
[380132589,1755565852949,-208.111543,0.00019644,2]
[380132590,1755565852964,-151.0,0.00019644,2]
[380132591,1755565852980,-286.495968,0.00019644,2]
[380132592,1755565852994,-359.273245,0.00019644,2]
[380132593,1755565853008,-359.273245,0.00019644,2]
[380132594,1755565853022,-151.0,0.00019644,2]
[380132595,1755565853036,-523.053354,0.00019644,2]
[380132596,1755565853050,-523.053354,0.00019644,2]
[380132597,1755565853064,-151.0,0.00019644,2]
[380132598,1755565853077,-260.03563963,0.00019664,2]
[380132599,1755565853091,-1002.216881,0.000197,2]
[380132600,1755565853106,-151.0,0.000197,2]
[380132601,1755565853116,-876.61583583,0.00019713,2]
[380132602,1755565853125,-1000.0,0.00019721,2]
[380132603,1755565853135,-591.82785039,0.00019721,2]
[380132604,1755565853265,-1004.90182795,0.00019721,2]
[380132605,1755565853274,-1000.0,0.00019721,2]
[380132606,1755565853283,-1000.0,0.00019721,2]
[380132607,1755565853292,-435.407089,0.00019725,2]
[380132608,1755565853302,-435.407089,0.00019725,2]
[380132609,1755565853311,-151.0,0.00019725,2]
[380132610,1755565853320,-263.424956,0.00019725,2]
[380132611,1755565853329,-263.424956,0.00019725,2]
[380132612,1755565853338,-2895.54,0.00019725,2]
[380132613,1755565853347,-2895.54,0.00019725,2]
[380132614,1755565853356,-387.446965,0.00019725,2]